{"text_format":"1","workbook":"xlsx","n_sheets":7,"sheets":["ETAT DE FRAIS page 1","ETAT DE FRAIS page 2","ETAT DE FRAIS page 3","ANNEXE","FRAIS KM","IJ","france et outre mer"],"not_rendered":{"charts":0,"images":3,"macros":1,"external_links":0,"defined_names":33,"comments":1,"pivot_tables":0},"unopened":[],"bounds":{"document_bytes":16777216,"sheet_cells":100000,"rows_first":2000,"rows_last":500,"rows_between":2000,"halvings":0,"cell_chars":16384,"cell_head_chars":4096},"cells_cut":0,"cells_raw":0,"read":"whole","date_system":"1900"}

{"sheet":"ETAT DE FRAIS page 1","index":0,"n_rows":39,"n_cols":13,"rows_kept":39,"cut":false,"hidden":false,"merged":[[4,0,4,10],[1,9,1,10],[2,0,2,7],[3,1,3,2],[3,5,3,7],[3,9,3,10],[5,0,6,1],[5,2,6,3],[5,4,5,7],[5,8,6,9],[5,10,7,10],[6,4,6,5],[6,6,6,7],[16,0,16,10],[19,2,19,7],[20,2,20,10],[23,6,23,7],[23,9,23,10],[27,3,27,10],[28,1,30,2],[28,3,28,5],[28,6,28,7],[28,9,28,10],[29,3,29,5],[29,6,29,7],[29,9,29,10],[30,3,30,10],[24,1,27,1],[24,2,27,2],[24,3,24,10],[25,3,25,5],[25,6,25,7],[25,9,25,10],[26,3,26,5],[35,9,35,10],[36,3,36,7],[36,9,36,10],[31,1,32,1],[31,2,32,2],[31,3,31,5],[31,6,31,7],[31,9,31,10],[32,3,32,5],[32,6,32,7],[32,9,32,10],[38,9,38,10],[42,0,42,10],[37,1,37,5],[37,6,37,7],[37,9,37,10],[38,0,38,5],[38,6,38,7],[24,0,37,0],[26,6,26,7],[26,9,26,10],[33,1,36,2],[33,3,33,7],[33,9,33,10],[34,3,34,7],[34,9,34,10],[35,3,35,7]]}
["page 1"," ETAT DE FRAIS A REMPLIR A L'ISSUE DE LA MISSION",null,null,null,null,null,null,null,null,null,null,"X"]
["Code division :","0993",null,null,null,null,null,null," N° Geslab"]
[]
["Nom d'usage :",null,null,null,"Prénom :",null,null,null,"Matricule :"]
["Joindre un RIB en cas de premier paiement ou de changement de compte bancaire"]
["Itinéraire (indiquer la résidence de départ, le lieu de mission, la résidence de retour, les points d'arrêt et les séjours privés)\n\nSi nécessaire, compléter l'annexe de l’état frais",null,"Départ résidence",null,"Lieu de mission",null,null,null,"Retour résidence",null,"Cocher oui si Séjour privé (1)"]
[null,null,null,null,"Arrivée",null,"Départ"]
["de","à","date","heure","date","heure","date","heure","date","heure"]
[]
[]
[]
[]
[]
[]
[]
[]
[]
["A - FRAIS PRIS EN CHARGE DANS LE CADRE DU MARCHE MISSIONS"]
[]
["Transport",null,"Cocher la (ou) les cases correspondantes"]
["Hébergement",null,"Bons de commande et factures à conserver dans le laboratoire et à rapprocher du dossier mission"]
[]
["B - FRAIS DE RESTAURATION ET D'HEBERGEMENT A REMBOURSER A L'AGENT"]
["           1- Frais de séjour en France métropolitaine et OUTRE MER",null,null,null,null,null,"Montant maximum autorisé",null,"Nombre de nuitées","Montant total"]
["Hébergement en France et en OUTRE MER (voir liste ville dans onglet france et outre mer) : Facture d'hôtel à produire et à conserver par le directeur d'unité\n\nSi chambre double préciser et indiquer le nom et le matricule de la seconde personne dans la zone \"observations\"","Cocher la case ci-contre si impossibilité du titulaire du marché d'hébergement de fournir la prestation demandée  : \n\n Joindre une attestation du titulaire de passage hors marché à l’état de frais  sauf pour l'Outre-Mer              ",null,"Paris et  petite couronne (Hauts de Seine 92, Seine Saint Denis 93 et Val de Marne 94) remboursement aux frais réels dans la limite de:"]
[null,null,null,"chambre simple 150 €",null,null,{"$f":"150*I26","v":0},{"$f":"120*F26","v":0}]
[null,null,null,"chambre double 160 €\n(partagée avec un autre missionnaire)",null,null,{"$f":"160*I27","v":0},{"$f":"120*F27","v":0}]
[null,null,null,"Grande couronne (Yvelines 78, Val d'Oise 95, Seine et Marne 77, Essonne 91)? villes de province de plus de 200 000 habitants et Outre-Mer, remboursement aux frais réels dans la limite de:"]
[null,null,null,"chambre simple 120 €",null,null,{"$f":"120*I29","v":0},{"$f":"120*F29","v":0}]
[null,null,null,"chambre double 130 €\n(partagée avec un autre missionnaire)",null,null,{"$f":"130*I30","v":0},{"$f":"120*F30","v":0}]
[null,null,null,"Autres communes (de moins de 200 000 habitants) remboursement aux frais réels dans la limite de :"]
[null,"Cocher la case ci-contre si imprévisibilité de la mission \n\nL'appréciation de l'imprévisibilité de la mission relève du directeur d'unité",null,"chambre simple 110 €",null,null,{"$f":"110*I32","v":0},{"$f":"120*F32","v":0}]
[null,null,null,"chambre double 120 €\n(partagée avec un autre missionnaire)",null,null,{"$f":"120*I33","v":0},{"$f":"120*F33","v":0}]
[null,"Hors marché sans attestation du\ntitulaire du marché d’hébergement",null,"Remboursement au taux forfaitaire de 70 € pour les autres communes (moins de 200 000 habitants) et outre-mer (Martinique, Guadeloupe, Guyane, Réunion, Mayotte, Saint-Pierre-et-Miquelon, Saint-Barthélemy, Saint-Martin)",null,null,null,null,null,{"$f":"70*I34","v":0},{"$f":"120*F34","v":0}]
[null,null,null,"Remboursement sur la base du taux forfaitaire de 110 € pour la commune de Paris",null,null,null,null,null,{"$f":"110*I35","v":0},{"$f":"120*F35","v":0}]
[null,null,null,"Remboursement sur la base du taux forfaitaire de 90 € pour les communes de la métropole du Grand Paris hors Paris, villes de plus de 200 000 habitants et outre-mer (Nouvelle-Calédonie, Wallis et Futuna, Polynésie française)",null,null,null,null,null,{"$f":"90*I36","v":0},{"$f":"120*F36","v":0}]
[null,null,null,"Remboursement au taux forfaitaire de 120 € pour les agents reconnus en qualité de travailleurs handicapés et en situation de mobilité réduite, l'indiquer dans la zone \"observations\"",null,null,null,null,null,{"$f":"120*I37","v":0},{"$f":"120*F37","v":0}]
[null,"Montant unitaire de la taxe de séjour acquittée ",null,null,null,null,null,null,null,{"$f":"G38*I38","v":0}]
["En cas de demande de remboursement de la taxe de séjour acquittée par l’agent, préciser le montant unitaire de la nuitée (TTC hors taxe de séjour) dans la case ci-contre\n\nLa taxe de séjour est remboursable dans la limite du forfait de la nuitée sur la base d’un justificatif à conserver par le directeur d’unité",null,null,null,null,null,null,null,null,{"$f":"SUM(J32:K38)+J26+J27+J29+J30","v":0}]

{"sheet":"ETAT DE FRAIS page 2","index":1,"n_rows":38,"n_cols":13,"rows_kept":38,"cut":false,"hidden":false,"merged":[[33,0,33,1],[1,9,1,10],[2,0,2,7],[3,5,3,7],[3,9,3,10],[3,1,3,2],[1,1,1,2],[13,8,14,10],[16,9,17,10],[16,8,17,8],[16,1,17,5],[13,6,14,7],[15,6,15,7],[15,9,15,10],[16,6,17,7],[16,0,19,0],[18,1,19,5],[18,8,19,10],[18,6,19,7],[32,4,32,5],[32,0,32,1],[21,2,21,3],[21,4,21,5],[24,0,24,4],[23,2,23,3],[30,2,30,3],[37,4,37,5],[22,2,22,3],[27,0,27,10],[22,4,22,5],[23,4,23,5],[23,0,23,1],[28,2,29,3],[28,4,29,5],[35,0,35,5],[28,0,29,1],[31,4,31,5],[25,0,25,4],[28,6,33,10],[32,2,32,3],[33,2,33,3],[33,4,33,5],[10,0,10,5],[10,9,10,10],[31,2,31,3],[30,0,30,1],[31,0,31,1],[11,1,12,5],[11,8,12,8],[11,6,12,7],[11,9,12,10],[10,6,10,7],[22,0,22,1],[15,0,15,5],[30,4,30,5],[11,0,14,0],[13,1,14,5],[21,0,21,1],[5,11,5,12],[6,0,8,0],[6,1,6,7],[6,9,6,10],[6,11,6,12],[7,1,7,7],[7,9,7,10],[8,1,8,7],[8,9,8,10],[8,11,8,12],[5,9,5,10]]}
["page 2"," ETAT DE FRAIS A REMPLIR A L'ISSUE DE LA MISSION",null,null,null,null,null,null,null,null,null,null,"X"]
["Code division :",{"$f":"'ETAT DE FRAIS page 1'!B2","v":"0993"},null,null,null,null,null,null," N° Geslab",{"$f":"'ETAT DE FRAIS page 1'!J2:K2","v":0}]
[]
["Nom d'usage :",{"$f":"'ETAT DE FRAIS page 1'!B4:C4","v":0},null,null,"Prénom :",{"$f":"'ETAT DE FRAIS page 1'!F4:H4","v":0},null,null,"Matricule :",{"$f":"'ETAT DE FRAIS page 1'!J4:K4","v":0}]
[]
["           1- Frais de séjour en France métropolitaine et OUTRE MER (suite)",null,null,null,null,null,null,null,"Nombre de repas","Montant total repas"]
["Repas","A titre onéreux pour la France et Martinique, Guadeloupe, Guyane, La Réunion, Mayotte, Saint-Barthélemy, Saint-Pierre-et-Miquelon, Saint-Martin (remboursement au taux forfaitaire de 17,50 € sur justificatif) ",null,null,null,null,null,null,null,{"$f":"I7*17.5","v":0}]
[null,"A titre onéreux pour la Nouvelle-Calédonie, Wallis et Futuna, Polynésie française  (remboursement au taux forfaitaire de 21 € sur justificatif)",null,null,null,null,null,null,null,{"$f":"I8*21","v":0}]
[null,"A titre onéreux mais pris dans un restaurant administratif ou assimilé en France (remboursement au taux forfaitaire de 8,75 € sur justificatif)",null,null,null,null,null,null,null,{"$f":"I9*8.75","v":0}]
[]
["Cas particulier des experts et personnalités scientifiques",null,null,null,null,null,"Nombre de nuitée(s)",null,"Montant maximum autorisé","Montant total nuitée(s)"]
["Hébergement","Experts scientifiques extérieurs à l'administration (français ou étrangers) remboursement aux frais réels dans la limite de 150 € (privilégier le recours au marché)\nJustificatifs de dépenses à produire et à conserver par le directeur d'unité",null,null,null,null,null,null,{"$f":"150*G12","v":0}]
[]
[null,"Personnalités scientifiques sur présentation de la décision expresse du P-DG ou DGDR (cf. annexe 1 de l’instruction mission)\nJoindre la décision à l’état de frais et produire les justificatifs "]
[]
[null,null,null,null,null,null,"Nombre de repas",null,"Montant maximum autorisé","Montant total repas"]
["Repas","Experts scientifiques extérieurs à l'administration  (français ou étrangers), remboursement aux frais réels dans la limite de 35 €\nJustificatifs de dépenses à produire et à conserver par le directeur d'unité",null,null,null,null,null,null,{"$f":"35*G17","v":0}]
[]
[null,"Personnalités scientifiques sur présentation de la décision expresse du P-DG ou DGDR (cf. annexe 1 de l’instruction mission)\nJoindre la décision à l’état de frais et produire les justificatifs "]
[]
["2- Frais de séjour à l'étranger"]
["(se référer aux indemnités forfaitaires fixées par l’arrêté du 03/07/2006 modifié)\nLa mission à l'étranger commence à l'heure d'rrivée dans la localité et se termine à l'heure de départ de ce meme lieu pour le retour",null,"1er taux\nNombre  de nuitées/repas\n (1)",null,"2ème taux\nNombre de nuitées/repas\n (1)",null,"Indemnité journalière\n(1er taux)","Indemnité journalière (2ème taux)","TOTAL","IJ 1","IJ 2"]
["Hébergement à titre onéreux (factures à produire et à conserver par le directeur d'unité)",null,null,null,null,null,{"$f":"(SUM(IJ!C4)*65%)","v":0},{"$f":"(SUM(IJ!D4)*65%)","v":0},{"$f":"(C23*G23)+(E23*H23)","v":0},{"$f":"IJ!C4","v":0},{"$f":"IJ!D4","v":0}]
["Repas à titre onéreux (factures à produire et à conserver par le directeur d’unité)",null,null,null,null,null,{"$f":"(SUM(IJ!C4)*17.5%)","v":0},{"$f":"(SUM(IJ!D4)*17.5%)","v":0},{"$f":"(C24*G24)+(E24*H24)","v":0},"Taux 1","Taux 2"]
["Repas à titre onéreux durant le trajet (justification par un document émis par le transporteur indiquant que la fourniture des repas n'est pas incluse dans le prix du billet. Le montant est égal à l'indemnité de repas applicable en France, soit 17,50 €)",null,null,null,null,null,{"$f":"IF(IJ!D4>0,0,IJ!C4*F25*0.175)","v":0},{"$f":"IF(IJ!D4>0,F25*IJ!D4*0.175,0)","v":0},{"$f":"17.5*F25","v":0},{"$f":"IJ!C2","v":0},{"$f":"IJ!D2","v":0}]
["(1) à n'utiliser qu'en cas de modification du taux de chancellerie pendant la mission\nSi d'autres taux, utiliser plusieurs états de frais et mettre le montant final dans la case E du dernier",null,null,null,null,"TOTAL",{"$f":"SUM(G23:G25)","v":0},{"$f":"SUM(H23:H25)","v":0},{"$f":"SUM(I23:I25)","v":0}]
["C - FRAIS DE TRANSPORT"]
["          1- Frais remboursés sur une base indemnitaire"]
["Véhicule personnel\nautorisé uniquement en France et dans les pays limitrophes ainsi qu'en Grande-Bretagne, au Portugal et au Pays-Bas",null,"Indemnité kilométrique       \n(1er taux)         ",null,"Indemnité kilométrique                             (2ème taux)",null,"Pour être autorisé à utiliser son véhicule personnel à des fins professionnelles, produire l’attestation d’assurance à jour garantissant de manière illimitée sa responsabilité au titre de tous dommages qui seraient causés par l’utilisation de son véhicule à des fins professionnelles, la copie de la carte grise, la copie du permis de conduire valide\n\njustificatifs à produire annuellement par l’agent et à conserver par le directeur d’unité"]
[]
["Puissance fiscale véhicule"]
["Nombre de Km parcourus A/R"]
["Taux"]
["TOTAL",null,{"$f":"C33*C32","v":0},null,{"$f":"E33*E32","v":0}]
[]
[]
[]
[null,null,"SOUS TOTAL",null,{"$f":"SUM(J7+J8+J9+J12+I14+J17+I19+I26+C34+E34)","v":0}]

{"sheet":"ETAT DE FRAIS page 3","index":2,"n_rows":32,"n_cols":13,"rows_kept":32,"cut":false,"hidden":false,"merged":[[1,9,1,10],[2,0,2,7],[3,1,3,2],[3,5,3,7],[3,9,3,10],[4,0,4,5],[7,0,7,10],[8,0,9,1],[8,2,9,3],[8,4,8,5],[8,6,9,7],[8,8,9,10],[5,9,5,10],[6,9,6,10],[10,0,10,1],[10,2,10,3],[10,6,10,7],[10,8,10,10],[11,0,11,1],[11,2,11,3],[11,6,11,7],[11,8,11,10],[12,0,12,1],[12,2,12,3],[12,6,12,7],[12,8,12,10],[13,0,13,1],[13,2,13,3],[13,6,13,7],[13,8,13,10],[14,0,14,1],[14,2,14,3],[14,6,14,7],[14,8,14,10],[15,0,15,1],[15,2,15,3],[15,6,15,7],[15,8,15,10],[16,0,16,1],[16,2,16,3],[16,6,16,7],[16,8,16,10],[17,0,17,1],[17,2,17,3],[17,6,17,7],[17,8,17,10],[18,0,18,1],[18,2,18,3],[18,6,18,7],[18,8,18,10],[19,0,19,5],[19,6,19,7],[32,0,32,1],[32,5,32,9],[1,1,1,2],[25,0,25,10],[26,0,26,10],[27,0,27,10],[29,0,29,8],[30,1,30,2],[30,4,30,6],[20,0,20,10],[21,0,21,7],[21,9,22,10],[22,0,22,8],[23,0,24,7],[23,8,24,8],[23,9,24,10]]}
["page 3"," ETAT DE FRAIS A REMPLIR A L'ISSUE DE LA MISSION",null,null,null,null,null,null,null,null,null,null,"X"]
["Code division :",{"$f":"'ETAT DE FRAIS page 1'!B2","v":"0993"},null,null,null,null,null,null," N° Geslab",{"$f":"'ETAT DE FRAIS page 1'!J2:K2","v":0}]
[]
["Nom d'usage :",{"$f":"'ETAT DE FRAIS page 1'!B4:C4","v":0},null,null,"Prénom :",{"$f":"'ETAT DE FRAIS page 1'!F4:H4","v":0},null,null,"Matricule :",{"$f":"'ETAT DE FRAIS page 1'!J4:K4","v":0}]
[]
[null,null,null,null,null,null,null,null,"TOTAL PAGE 1",{"$f":"SUM('ETAT DE FRAIS page 1'!J39:K39)","v":0}]
[null,null,null,null,null,null,null,null,"TOTAL PAGE 2",{"$f":"SUM('ETAT DE FRAIS page 2'!E38:F38)","v":0}]
["           2- Frais réels dus à l'agent "]
["Nature des frais réels payés par l'agent",null,"Montant en €",null,"Montant en devises",null,"Total en €",null,"Justificatifs à produire et à conserver par le directeur d'unité"]
[null,null,null,null,"1er taux","2ème taux"]
["Avion, train",null,null,null,null,null,{"$f":"C11+(E11*IJ!C3)+(F11*IJ!D3)","v":0},null,"Facture, reçu électronique ou titre de transport"]
["Véhicule de location",null,null,null,null,null,{"$f":"C12+(E12*IJ!C3)+(F12*IJ!D3)","v":0},null,"Facture du loueur"]
["Carburant uniquement pour les véhicules de location\nPour les véhicules administratifs CNRS, les frais de carburant doivent être réglés à l'aide de la carte de carburant souscrite par le CNRS, dont est doté le véhicule",null,null,null,null,null,{"$f":"C13+(E13*IJ!C3)+(F13*IJ!D3)","v":0},null,"Ticket ou reçu"]
["Péage autoroute",null,null,null,null,null,{"$f":"C14+(E14*IJ!C3)+(F14*IJ!D3)","v":0},null,"Ticket ou reçu"]
["Parking",null,null,null,null,null,{"$f":"C15+(E15*IJ!C3)+(F15*IJ!D3)","v":0},null,"Ticket ou reçu"]
["Taxi",null,null,null,null,null,{"$f":"C16+(E16*IJ!C3)+(F16*IJ!D3)","v":0},null,"Facture ou reçu"]
["Bus, métro, RER",null,null,null,null,null,{"$f":"C17+(E17*IJ!C3)+(F17*IJ!D3)","v":0},null,"Ticket ou reçu"]
["Frais d'inscription aux colloques",null,null,null,null,null,{"$f":"C18+(E18*IJ!C3)+(F18*IJ!D3)","v":0},null,"Facture ou reçu et programme du colloque"]
["Autres frais à l'étranger et Outre Mer : visa, passeport et vaccinatons, de change, prélèvements bancaires, excédents bagages, taxes aéroport et autres taxes et impots touchant les voyageurs\npréciser la nature de chaque dépense dans la case \"observations\")",null,null,null,null,null,{"$f":"C19+(E19*IJ!C3)+(F19*IJ!D3)","v":0},null,"Prévu dans l'instruction (facture ou reçu)"]
["TOTAL",null,null,null,null,null,{"$f":"SUM(G11:H19)","v":0}]
[]
["D - CALCUL DES INDEMNITES par application du barème et en fonction des justificatifs produits ",null,null,null,null,null,null,null,{"$f":"J6+J7+G20","v":0},"Contrôle effectué par le gestion du laboratoire"]
[]
["E - MONTANT dont le remboursement est demandé",null,null,null,null,null,null,null,null,"q"]
[]
["F - OBSERVATIONS (à compléter, le cas échéant, des renseignements propres à faciliter la prise en charge de la mission par le service financier et comptable)"]
[]
["Joindre un RIB en cas de premier paiement ou de changement de compte bancaire"]
["https://intranet.cnrs.fr/Cnrs_pratique/partir_mission/Documents/Instruction-mission_01-08-2020.pdf"]
["Je certifie à tous égards l’exactitude du présent état et la présence des justificatifs requis"]
["Fait à :",null,null,"Date :"]
["Signature du bénéficiaire",null,null,null,null,null,"Signature du directeur d’unité"]

{"sheet":"ANNEXE","index":3,"n_rows":8,"n_cols":11,"rows_kept":8,"cut":false,"hidden":false,"merged":[[6,4,6,5],[6,6,6,7],[2,0,2,7],[1,9,1,10],[3,1,3,3],[5,0,6,1],[5,2,6,3],[5,4,5,7],[5,8,6,9],[5,10,7,10],[3,5,3,7],[3,9,3,10]]}
[null,null,null,null,null,null,null,null,null,null,"Version 10 au 01/01/20"]
["Code division :",{"$f":"'ETAT DE FRAIS page 2'!B2","v":"0993"},null,null,null,null,null,null," N° de mission Geslab",{"$f":"'ETAT DE FRAIS page 2'!J2:K2","v":0}]
["ANNEXE A L'ETAT DE FRAIS DE MISSION"]
["Nom d'usage : ",{"$f":"'ETAT DE FRAIS page 2'!B4:D4","v":0},null,null,"Prénom :",{"$f":"'ETAT DE FRAIS page 2'!F4:I4","v":0},null,null,"Matricule :",{"$f":"'ETAT DE FRAIS page 2'!J4:K4","v":0}]
[]
["Itinéraire (indiquer la résidence de départ, le lieu de mission, la résidence de retour, les points d'arrêt et les séjours privés)",null,"Départ résidence",null,"Lieu de mission",null,null,null,"Retour résidence",null,"Séjour privé"]
[null,null,null,null,"Arrivée",null,"Départ"]
["de","à","date","heure","date","heure","date","heure","date","heure"]

{"sheet":"FRAIS KM","index":4,"n_rows":65,"n_cols":6,"rows_kept":65,"cut":false,"hidden":false,"merged":[[2,2,2,5],[7,2,7,5],[12,2,12,5]]}
[null,null,"Arrêté du 26 février 2019 modifiant l'arrêté du 3 juillet 2006 fixant les taux des indemnités kilométriques "]
["0",null,"LIEU OÙ S’EFFECTUE LE DÉPLACEMENT","JUSQU’À 2 000 KM","DE 2 001 À 10 000 KM","APRÈS 10 000 KM"]
["0,09",null,"Véhicule de 5 CV et moins"]
["0,12",null,"Métropole, Martinique, Guadeloupe, Guyane, La Réunion, Mayotte, Saint-Pierre-et-Miquelon (en euros)",0.28999999999999998,0.36,0.21]
["0,18",null,"Polynésie française (en F CFP)",47.32,56.78,33.770000000000003]
["0,23",null,"Nouvelle-Calédonie (en F CFP) ",47.32,56.78,33.770000000000003]
["0,25",null,"Iles Wallis et Futuna (en F CFP) ",50.01,85.29,35.17]
["0,31",null,"Véhicule de 6 CV et 7 CV"]
["0,32",null,"Métropole, Martinique, Guadeloupe, Guyane, La Réunion, Mayotte, Saint-Pierre-et-Miquelon (en euros)",0.37,0.46,0.27]
["0,35",null,"Polynésie française (en F CFP)",51.29,62.16,36.450000000000003]
["0,39",null,"Nouvelle-Calédonie (en F CFP) ",51.29,62.16,36.450000000000003]
["0,43",null,"Iles Wallis et Futuna (en F CFP) ",51.29,66.25,39.14]
[null,null,"Véhicule de 8 CV et plus"]
[null,null,"Métropole, Martinique, Guadeloupe, Guyane, La Réunion, Mayotte, Saint-Pierre-et-Miquelon (en euros)",0.41,0.5,0.28999999999999998]
[null,null,"Polynésie française (en F CFP)",55.5,66.25,39.14]
[null,null,"Nouvelle-Calédonie (en F CFP) ",55.5,66.25,39.14]
[null,null,"Iles Wallis et Futuna (en F CFP) ",58.19,68.94,40.659999999999997]
[null,null,"LIEU OÙ S’EFFECTUE LE DÉPLACEMENT"," MOTOCYCLETTE (cylindrée supérieure à 125 cm3)","VÉLOMOTEUR et autres véhicules à moteur"]
[null,null,"Métropole, Martinique, Guadeloupe, Guyane, La Réunion, Mayotte, Saint-Pierre-et-Miquelon (en euros)",0.14000000000000001,0.11]
[null,null,"Polynésie française (en F CFP)",23.72,14.25]
[null,null,"Nouvelle-Calédonie (en F CFP) ",23.72,14.25]
[null,null,"Iles Wallis et Futuna (en F CFP) ",25,14.96]
[]
[null,null,"X"]
[]
[null,null,"OUI"]
[null,null,"NON"]
[]
[null,null,1]
[null,null,2]
[]
[]
[]
[]
[null,null,0.11]
[null,null,0.14000000000000001]
[null,null,0.21]
[null,null,0.27]
[null,null,0.28999999999999998]
[null,null,0.36]
[null,null,0.37]
[null,null,0.41]
[null,null,0.46]
[null,null,0.5]
[null,null,14.25]
[null,null,14.96]
[null,null,23.72]
[null,null,25]
[null,null,33.770000000000003]
[null,null,35.17]
[null,null,36.450000000000003]
[null,null,39.14]
[null,null,40.659999999999997]
[null,null,47.32]
[null,null,50.01]
[null,null,51.29]
[null,null,51.29]
[null,null,55.5]
[null,null,56.78]
[null,null,58.19]
[null,null,62.16]
[null,null,66.25]
[null,null,66.25]
[null,null,68.94]
[null,null,85.29]

{"sheet":"IJ","index":5,"n_rows":219,"n_cols":6,"rows_kept":219,"cut":false,"hidden":false,"merged":[[0,5,3,7],[10,0,10,3],[3,0,3,1],[5,0,5,3]]}
[null,"Liens vers les sites officiels","Montant 1er taux","Montant 2ème taux\nà n'utiliser qu'en cas de modification du taux de chancellerie pendant la mission",null,"Lorsque la durée d’une mission est supérieure à un mois dans la même localité, l’indemnité journalière forfaitaire est réduite de :\n- 20 % au-delà du 30e jour\n- 40 % au-delà du 60e jour\n- 50 % au-delà de 120 jours\nindiquer le montant dans la case E"]
["Indemnités forfaitaires","http://www.economie.gouv.fr/dgfip/mission_taux_chancellerie/frais"]
["Taux de change","http://www.economie.gouv.fr/dgfip/taux_chancellerie_change"]
["TOTAL",null,{"$f":"C2*C3","v":0},{"$f":"D2*D3","v":0}]
["La mission à l'étranger commence à l'heure d'rrivée dans la localité et se termine à l'heure de départ de ce meme lieu pour le retour"]
["Si l'indemnité est en euro ou pour l'outre-mer mettre le chiffre 1 à la place du taux de change"]
["S'il y a d'autres taux, utiliser plusieurs états de frais et mettre le montant final dans la case E du dernier"]
["Attention certains pays ont 2 codes monnaie, prendre toujours l'EURO"]
["Arrêté du 12 juillet 2018 fixant les taux des indemnités de mission à l'étranger"]
["https://www.economie.gouv.fr/dgfip/liste-et-parites-des-monnaies-qui-circulent-dans-territoires-doutre-mer-collectivites-territor"]
["INDEMNITÉS JOURNALIÈRES DE MISSION TEMPORAIRE À L'ÉTRANGER"]
["PAYS","MONNAIE","arrêté du 12/07/18","arrêté du 03/07/06"]
["AFGHANISTAN","DOLLAR US",279,279]
["AFRIQUE DU SUD","EURO",138,138]
["AFRIQUE DU SUD pour la période allant du 15 décembre au 1er mars","EURO",185,185]
["ALBANIE","EURO",130,180]
["ALGERIE","DINAR ALGERIEN",20480,11000]
["ALLEMAGNE","EURO",164,164]
["ANDORRE","EURO",118,118]
["ANGOLA","EURO",300,300]
["ANGUILLA","DOLLAR US",208,208]
["ANTIGUA ET BARBUDA","DOLLAR US",230,230]
["ARABIE SAOUDITE","EURO",158,158]
["ARGENTINE","DOLLAR US",157,157]
["ARMENIE","EURO",186,186]
["ARUBA","DOLLAR US",150,150]
["AUSTRALIE","DOLLAR AUSTRALIEN",348,348]
["AUTRICHE","EURO",175,175]
["AZERBAIDJAN","EURO",204,204]
["BAHAMAS","DOLLAR US",207,207]
["BAHREIN","EURO",200,200]
["BANGLADESH","EURO",258,130]
["BARBADE","DOLLAR US",310,310]
["BELGIQUE","EURO",143,143]
["BELIZE","DOLLAR US",177,177]
["BENIN","EURO",145,145]
["BERMUDES","DOLLAR DES BERMUDES",194,194]
["BIELORUSSIE","EURO",150,150]
["BIRMANIE","DOLLAR US",250,250]
["BOLIVIE","DOLLAR US",135,135]
["BOSNIE-HERZEGOVINE","EURO",169,169]
["BOTSWANA","EURO",119,119]
["BRESIL","EURO",216,216]
["BRUNEI","DOLLAR DE BRUNEI",255,255]
["BULGARIE","EURO",145,145]
["BURKINA FASO","EURO",145,145]
["BURUNDI","EURO",140,140]
["CAIMANS (îles)","DOLLAR US",141,141]
["CAMBODGE","DOLLAR US",150,150]
["CAMEROUN","EURO",120,120]
["CANADA","DOLLAR CANADIEN",260,260]
["CAP-VERT","ESCUDO",13575,13575]
["CENTRAFRICAINE (République)","FRANC CFA",80000,80000]
["CHILI","DOLLAR US",217,217]
["CHINE","YUAN CHINOIS (CNY)",1.7,1.7]
["Ville de Shanghai pour la période allant du 1er mai au 31 octobre 2010","YUAN CHINOIS (CNY)",null,2.2000000000000002]
["CHYPRE","EURO",190,190]
["COLOMBIE","DOLLAR US",176,176]
["COMORES","EURO",150,150]
["CONGO","FRANC CFA",69880,69880]
["CONGO (République démocratique du)","EURO",195,195]
["COOK (îles)","DOLLAR NEO-ZELANDAIS",400,252]
["COREE DU NORD","DOLLAR US",272,272]
["COREE DU SUD","EURO",210,210]
["COSTA RICA","DOLLAR US",169,169]
["COTE D'IVOIRE","FRANC CFA",137000,137000]
["CROATIE","EURO",142,142]
["CUBA","EURO",200,155]
["CURAÇAO","DOLLAR US",150,150]
["DANEMARK","COURONNE DANOISE",1660,1660]
["DJIBOUTI","FRANC DJIBOUTI",36320,36320]
["DOMINICAINE (République)","DOLLAR US",142,142]
["DOMINIQUE","DOLLAR US",201,201]
["EGYPTE","EURO",148,148]
["EMIRATS ARABES UNIS","EURO",300,300]
["EQUATEUR","DOLLAR US",150,150]
["ERYTHREE","DOLLAR US",195,94]
["ESPAGNE","EURO",132,132]
["ESTONIE","EURO",129,129]
["ETATS-UNIS D'AMERIQUE","DOLLAR US",320,320]
["Ville de NEW YORK :  période allant du 1er janvier au 31 août","DOLLAR US",320,320]
["Ville de NEW YORK : période allant du 1er septembre au 31 décembre","DOLLAR US",450,450]
["ETHIOPIE","EURO",123,123]
["FIDJI","DOLLAR DE FIDJI",224,224]
["FINLANDE","EURO",220,220]
["GABON","FRANC CFA",140000,100000]
["GAMBIE","DALASI",2460,2460]
["GEORGIE","DOLLAR US",195,195]
["GHANA","DOLLAR US",250,192]
["GRANDE-BRETAGNE","LIVRE STERLING",180,130]
["GRECE","EURO",167,167]
["GRENADE","DOLLAR US",199,199]
["GUATEMALA","EURO",160,160]
["GUINEE","EURO",170,170]
["GUINEE-BISSAU","EURO",105,105]
["GUINEE EQUATORIALE","FRANC CFA",90500,90500]
["GUYANA","DOLLAR US",200,200]
["HAITI","DOLLAR US",220,220]
["HONDURAS","DOLLAR US",152,152]
["HONG KONG","DOLLAR DE HONG KONG",2200,2200]
["HONGRIE","EURO",175,175]
["INDE","EURO",210,260]
["INDONESIE","EURO",160,160]
["IRAN","DOLLAR US",186,186]
["IRAK","EURO",300,300]
["IRLANDE","EURO",190,190]
["ISLANDE","COURONNE ISLANDAISE",34397,15000]
["ISRAEL","EURO",230,230]
["ITALIE","EURO",220,220]
["JAMAIQUE","DOLLAR US",162,162]
["JAPON","YEN",25500,25500]
["Ville de TOKYO","YEN",30000,30000]
["JORDANIE","DINAR JORDANIEN",151,151]
["KAZAKHSTAN","EURO",290,290]
["KENYA","DOLLAR US",141,141]
["KIRGHIZISTAN","EURO",150,150]
["KIRIBATI","DOLLAR DE FIDJI",221,221]
["KOSOVO","EURO",150]
["KOWEIT","EURO",245,245]
["LAOS","DOLLAR US",150,150]
["LESOTHO","EURO",120,120]
["LETTONIE","EURO",152,152]
["LIBAN","EURO",154,154]
["LIBERIA","DOLLAR US",230,230]
["LIBYE","DINAR LIBYEN",280,280]
["LIECHTENSTEIN","FRANC SUISSE",230,230]
["LITUANIE","EURO",145,"500 LITAS"]
["LUXEMBOURG","EURO",173,173]
["MACAO","DOLLAR DE HONG KONG",2200,2200]
["MACEDOINE","EURO",117,117]
["MADAGASCAR","EURO",114,114]
["MALAISIE","RINGGIT",468,468]
["MALAWI","DOLLAR US",214,214]
["MALDIVES (îles)","EURO",320,230]
["MALI","FRANC CFA",62000,62000]
["MALTE","EURO",105,105]
["MAROC","EURO",175,175]
["MARSHALL (îles)","DOLLAR US",154,154]
["MAURICE (île)","ROUPIE MAURICIENNE",5500,5500]
["MAURITANIE","EURO",143,143]
["MEXIQUE","EURO",150,150]
["MICRONESIE","DOLLAR US",157,157]
["MOLDAVIE","DOLLAR US",188,188]
["MONGOLIE EXTERIEURE","EURO",102,102]
["MONTENEGRO","EURO",150,150]
["MOZAMBIQUE","DOLLAR US",189,189]
["MYANMAR (Union de)","DOLLAR US",null,140]
["NAMIBIE","EURO",90,90]
["NAURU","DOLLAR DE FIDJI",208,208]
["NEPAL","DOLLAR US",140,140]
["NICARAGUA","DOLLAR US",154,154]
["NIGER","FRANC CFA",78000,78000]
["NIGERIA","EURO",273,273]
["NIUE","DOLLAR NEO-ZELANDAIS",204,204]
["NORVEGE","COURONNE NORVEGIENNE",1465,1465]
["NOUVELLE-ZELANDE","DOLLAR NEO-ZELANDAIS",370,370]
["OMAN","EURO",265,265]
["OUGANDA","EURO",130,130]
["OUZBEKISTAN","DOLLAR US",197,113]
["PAKISTAN","DOLLAR US",173,173]
["PALAOS (îles)","DOLLAR US",311,311]
["PANAMA","DOLLAR US",178,178]
["PAPOUASIE-NOUVELLE-GUINEE","EURO",172,172]
["PARAGUAY","DOLLAR US",180,180]
["PAYS-BAS","EURO",161,161]
["PEROU","DOLLAR US",170,170]
["PHILIPPINES","PESO PHILIPPIN",8770,8770]
["POLOGNE","EURO",175,175]
["PORTUGAL","EURO",160,160]
["QATAR","EURO",278,278]
["ROUMANIE","EURO",160,160]
["RUSSIE","EURO",230,230]
["RWANDA","DOLLAR US",277,277]
["SAINT-CHRISTOPHE ET NEVIS","DOLLAR US",null,144]
["SAINT-CHRISTOPHE-ET-NIEVES","DOLLAR US",202,202]
["SAINTE-LUCIE et les autres pays des Caraïbes de l'Est","DOLLAR US",199,199]
["SAINT-VINCENT ET LES GRENADINES","DOLLAR US",188,188]
["SALOMON","VATU",23052,23052]
["SALVADOR","DOLLAR US",177,177]
["SAMOA","DOLLAR US",230,139]
["SAO TOME ET PRINCIPE","DOLLAR US",135,135]
["SENEGAL","FRANC CFA",91800,91800]
["SERBIE","EURO",150,150]
["SEYCHELLES","EURO",300,300]
["SIERRA LEONE","DOLLAR US",260,260]
["SINGAPOUR","EURO",200,200]
["SLOVAQUIE","EURO",155,155]
["SLOVENIE","EURO",160,160]
["SOMALIE","DOLLAR US",158,158]
["SOUDAN","DOLLAR US",175,175]
["Sud SOUDAN","DOLLAR US",306,306]
["SRI LANKA","EURO",180,155]
["SUEDE","COURONNE SUEDOISE",1997,1997]
["SUISSE","FRANC SUISSE",230,230]
["SURINAME","DOLLAR US",180,180]
["SWAZILAND","EURO",138,"650 RAND COMMERCIAL"]
["SYRIE","EURO",154,154]
["TADJIKISTAN","DOLLAR US",250,135]
["TAIWAN","DOLLAR DE TAIWAN",5990,5990]
["TANZANIE","EURO",135,135]
["TCHAD","EURO",225,225]
["TCHEQUE (République)","EURO",180,180]
["THAILANDE","BAHT",5000,3885]
["TIMOR oriental","EURO",150,150]
["TOGO","FRANC CFA",82640,82640]
["TONGA","DOLLAR DE FIDJI",214,214]
["TRINITE ET TOBAGO","DOLLAR US",267,267]
["TUNISIE","EURO",125,125]
["TURKMENISTAN","EURO",102,102]
["TURQUIE","EURO",165,165]
["TUVALU","DOLLAR DE FIDJI",192,192]
["UKRAINE","EURO",208,208]
["URUGUAY","DOLLAR US",135,135]
["VANUATU","EURO",210,210]
["VENEZUELA","EURO",195,195]
["VIETNAM","EURO",158,158]
["YEMEN","EURO",188,188]
["ZAMBIE","EURO",180,180]
["ZIMBABWE","DOLLAR US",180,180]

{"sheet":"france et outre mer","index":6,"n_rows":14,"n_cols":6,"rows_kept":14,"cut":false,"hidden":false,"merged":[[0,1,0,3],[0,4,0,5],[0,0,1,0],[13,0,13,5]]}
[null,"France métropolitaine",null,null,"Outre-mer"]
[null,"Autres communes de province (ville de moins de 200 000 habitants)","Départements de la Grande couronne (Yvelines, Val d'Oise, Seine et Marne, Essonne) et villes de plus de 200 000 habitants","Paris et départements de la petite couronne (Hauts de Seine, Seine Saint Denis et Val de Marne)","Martinique, Guadeloupe, Guyane, Réunion, Mayotte, Saint-Pierre-et-Miquelon, Saint-Barthélemy, Saint-Martin","Nouvelle-Calédonie, Wallis et Futuna, Polynésie française"]
["Hébergement pour une chambre simple",110,120,150,120,120]
["Repas",17.5,17.5,17.5,17.5,"21 € ou 2 506 F CFP"]
[]
["NOTE DU 22/07/2020"]
["https://intranet.cnrs.fr/Cnrs_pratique/partir_mission/Documents/Note_DSFIM-missions-07-2020.pdf"]
[]
["Villes de + de 200 000 habitants (hors Paris)"]
["https://www.service-public.fr/particuliers/glossaire/R52990"]
[]
["Communes de la métropole du grand Paris hors Paris"]
["https://www.legifrance.gouv.fr/affichTexte.do?cidTexte=JORFTEXT000031255615"]
["ABLON-SUR-SEINE, ALFORTVILLE, ANTONY, ARCUEIL, ARGENTEUIL, ASNIERES-SUR-SEINE, ATHIS-MONS, AUBERVILLIERS, AULNAY-SOUS-BOIS, BAGNEUX, BAGNOLET, BOBIGNY, BOIS-COLOMBES, BOISSY-SAINT-LEGER, BONDY, BONNEUIL-SUR-MARNE, BOULOGNE-BILLANCOURT, BOURG-LA-REINE, BRY-SUR-MARNE, CACHAN, CHAMPIGNY-SUR-MARNE, CHARENTON-LE-PONT, CHATENAY-MALABRY, CHATILLON, CHAVILLE, CHENNEVIERES-SUR-MARNE, CHEVILLY-LARUE, CHOISY-LE-ROI, CLAMART, CLICHY, CLICHY-SOUS-BOIS, COLOMBES, COUBRON, COURBEVOIE, CRETEIL, DRANCY, DUGNY, EPINAY-SUR-SEINE, FONTENAY-AUX-ROSES, FONTENAY-SOUS-BOIS, FRESNES, GAGNY, GARCHES, GENNEVILLIERS, GENTILLY, GOURNAY-SUR-MARNE, ISSY-LES-MOULINEAUX, IVRY-SUR-SEINE, JOINVILLE-LE-PONT, JUVISY-SUR-ORGE, LA COURNEUVE, LA GARENNE-COLOMBES, LA QUEUE-EN-BRIE, LE BLANC-MESNIL, LE BOURGET, LE KREMLIN-BICETRE, LE PERREUX-SUR-MARNE, LE PLESSIS-ROBINSON, LE PLESSIS-TREVISE, LE PRE-SAINT-GERVAIS, LE RAINCY, LES LILAS, LES PAVILLONS-SOUS-BOIS, LEVALLOIS-PERRET, L'HAY-LES-ROSES, L'ILE-SAINT-DENIS, LIMEIL-BREVANNES, LIVRY-GARGAN, MAISONS-ALFORT, MALAKOFF, MANDRES-LES-ROSES, MARNES-LA-COQUETTE, MAROLLES-EN-BRIE, MEUDON, MONTFERMEIL, MONTREUIL, MONTROUGE, MORANGIS, NANTERRE, NEUILLY-PLAISANCE, NEUILLY-SUR-MARNE, NEUILLY-SUR-SEINE, NOGENT-SUR-MARNE, NOISEAU, NOISY-LE-GRAND, NOISY-LE-SEC, ORLY, ORMESSON-SUR-MARNE, PANTIN, PARAY-VIEILLE-POSTE, PARIS, PERIGNY, PIERREFITTE-SUR-SEINE, PUTEAUX, ROMAINVILLE, ROSNY-SOUS-BOIS, RUEIL-MALMAISON, RUNGIS, SAINT-CLOUD, SAINT-DENIS, SAINT-MANDE, SAINT-MAUR-DES-FOSSES, SAINT-MAURICE, SAINT-OUEN, SANTENY, SAVIGNY-SUR-ORGE, SCEAUX, SEVRAN, SEVRES, STAINS, SUCY-EN-BRIE, SURESNES, THIAIS, TREMBLAY-EN-FRANCE, VALENTON, VANVES, VAUCRESSON, VAUJOURS, VILLECRESNES, VILLE-D'AVRAY, VILLEJUIF, VILLEMOMBLE, VILLENEUVE-LA-GARENNE, VILLENEUVE-LE-ROI, VILLENEUVE-SAINT-GEORGES, VILLEPINTE, VILLETANEUSE, VILLIERS-SUR-MARNE, VINCENNES, VIRY-CHATILLON, VITRY-SUR-SEINE."]